fUSD/lending_fUSD_20250103
["ID","MTS","AMOUNT","RATE_DAILY","PERIOD"]
[347513343,1735897845574,-500.0,8.997e-05,2]
[347513344,1735897845584,-500.0,8.997e-05,2]
[347513345,1735897845593,-500.0,8.997e-05,2]
[347513346,1735897845603,-500.0,8.997e-05,2]
[347513347,1735897845612,-590.98970702,8.997e-05,2]
[347513348,1735897845621,-500.0,8.997e-05,2]
[347513349,1735897845632,-500.0,8.997e-05,2]
[347513350,1735897845641,-500.0,8.997e-05,2]
[347513351,1735897845651,-500.0,8.997e-05,2]
[347513352,1735897845661,-391.71059101,8.997e-05,2]
[347513353,1735897845671,-500.0,8.997e-05,2]
[347513354,1735897845681,-500.0,8.997e-05,2]
[347513355,1735897845692,-5289.67,8.997e-05,2]
[347513356,1735897845703,-500.59265729,8.997e-05,2]
[347513357,1735897845712,-500.0,8.997e-05,2]
[347513358,1735897845723,-500.0,8.997e-05,2]
[347513359,1735897845733,-300.0,8.997e-05,2]
[347513360,1735897845742,-5994.19,8.997e-05,2]
[347513361,1735897845751,-381.93051924,8.997e-05,2]
[347513362,1735897845762,-500.0,8.997e-05,2]
[347513363,1735897845771,-500.0,8.997e-05,2]
[347513364,1735897845781,-4238.37,8.997e-05,2]
[347513365,1735897845792,-500.0,8.997e-05,2]
[347513366,1735897845801,-500.0,8.997e-05,2]
[347513367,1735897845810,-500.0,8.997e-05,2]
[347513368,1735897845819,-500.0,8.997e-05,2]
[347513369,1735897845829,-500.0,8.997e-05,2]
[347513370,1735897845838,-7830.78,8.997e-05,2]
[347513371,1735897845848,-9688.5,8.997e-05,2]
[347513372,1735897845858,-500.0,8.997e-05,2]
[347513373,1735897845867,-552.67437329,8.997e-05,2]
[347513374,1735897845877,-500.0,8.997e-05,2]
[347513375,1735897845887,-500.0,8.997e-05,2]
[347513376,1735897845897,-500.0,8.997e-05,2]
[347513377,1735897845906,-1376.7,8.997e-05,2]
[347513378,1735897845916,-500.0,8.997e-05,2]
[347513379,1735897845926,-262.12765488,8.997e-05,2]
[347513380,1735897845935,-500.0,8.997e-05,2]
[347513381,1735897845945,-1000.0,8.997e-05,2]
[347513382,1735897845954,-6370.19,8.997e-05,2]
[347513383,1735897845963,-500.90899813,8.997e-05,2]
[347513384,1735897845972,-530.85056258,8.997e-05,2]
[347513385,1735897845983,-500.0,8.997e-05,2]
[347513386,1735897845993,-12828.72,8.997e-05,2]
[347513387,1735897846002,-803.82,8.997e-05,2]
[347513388,1735897846012,-2135.2,8.997e-05,2]
[347513389,1735897846022,-1053.03,8.997e-05,2]
[347513390,1735897846031,-1069.87,8.997e-05,2]
[347513391,1735897846041,-1900.73,8.997e-05,2]
[347513392,1735897846051,-3505.1,8.997e-05,2]
[347513393,1735897846060,-1380.55,8.997e-05,2]
[347513394,1735897846069,-500.0,8.997e-05,2]
[347513395,1735897846079,-1144.59,8.997e-05,2]
[347513406,1735897846088,-1841.26,8.997e-05,2]
[347513407,1735897846346,-1867.46,8.997e-05,2]
[347513408,1735897846356,-3841.48,8.997e-05,2]
[347513409,1735897846365,-2511.49,8.997e-05,2]
[347513410,1735897846375,-500.0,8.997e-05,2]
[347513411,1735897846384,-5884.72,8.997e-05,2]
[347513412,1735897846393,-3019.53,8.997e-05,2]
[347513413,1735897846403,-4183.98,8.997e-05,2]
[347513414,1735897846412,-552.26,8.997e-05,2]
[347513415,1735897846421,-1086.75,8.997e-05,2]
[347513416,1735897846431,-1946.39,8.997e-05,2]
[347513417,1735897846440,-500.0,8.997e-05,2]
[347513418,1735897846449,-500.0,8.997e-05,2]
[347513419,1735897846458,-1164.43,8.997e-05,2]
[347513420,1735897846469,-500.0,8.997e-05,2]
[347513421,1735897846479,-500.0,8.997e-05,2]
[347513422,1735897846489,-1914.54,8.997e-05,2]
[347513423,1735897846499,-5258.8,8.997e-05,2]
[347513424,1735897846508,-724.36,8.997e-05,2]
[347513425,1735897846517,-1624.15,8.997e-05,2]
[347513426,1735897846528,-1707.53,8.997e-05,2]
[347513427,1735897846539,-500.0,8.997e-05,2]
[347513428,1735897846548,-2942.33,8.997e-05,2]
[347513429,1735897846557,-2057.75,8.997e-05,2]
[347513430,1735897846567,-5583.05,8.997e-05,2]
[347513431,1735897846577,-1747.71,8.997e-05,2]
[347513432,1735897846586,-1703.88,8.997e-05,2]
[347513433,1735897846595,-500.0,8.997e-05,2]
[347513434,1735897846605,-2318.18,8.997e-05,2]
[347513435,1735897846616,-6516.24,8.997e-05,2]
[347513436,1735897846626,-1896.91,8.997e-05,2]
[347513437,1735897846635,-500.0,8.997e-05,2]
[347513438,1735897846644,-4176.54,8.997e-05,2]
[347513439,1735897846655,-576.95,8.997e-05,2]
[347513440,1735897846671,-2763.46,8.997e-05,2]
[347513441,1735897846682,-1299.93,8.997e-05,2]
[347513442,1735897846692,-8027.13,8.997e-05,2]
[347513443,1735897846701,-2956.54,8.997e-05,2]
[347513444,1735897846711,-1814.31,8.997e-05,2]
[347513445,1735897846720,-500.0,8.997e-05,2]
[347513446,1735897846730,-2268.5,8.997e-05,2]
[347513447,1735897846739,-2517.51,8.997e-05,2]
[347513448,1735897846749,-3138.74,8.997e-05,2]
[347513449,1735897846760,-1924.0,8.997e-05,2]
[347513450,1735897846770,-2349.43,8.997e-05,2]
[347513451,1735897846779,-1479.04,8.997e-05,2]
[347513452,1735897846790,-1845.0,8.997e-05,2]
[347513453,1735897846799,-1342.02,8.997e-05,2]
[347513454,1735897846809,-1466.27,8.997e-05,2]
[347513455,1735897846818,-3020.93,8.997e-05,2]
[347513456,1735897846828,-500.0,8.997e-05,2]
[347513457,1735897846838,-3176.49,8.997e-05,2]
[347513458,1735897846848,-3134.09,8.997e-05,2]
[347513459,1735897846857,-1882.48,8.997e-05,2]
[347513460,1735897846867,-3061.0,8.997e-05,2]
[347513461,1735897846877,-2621.89,8.997e-05,2]
[347513462,1735897846886,-10196.53,8.997e-05,2]
[347513463,1735897846895,-1405.22,8.997e-05,2]
[347513464,1735897846905,-2338.48,8.997e-05,2]
[347513465,1735897846915,-1340.74,8.997e-05,2]
[347513466,1735897846924,-1872.22,8.997e-05,2]
[347513467,1735897846934,-2097.87,8.997e-05,2]
[347513468,1735897846943,-500.0,8.997e-05,2]
[347513469,1735897846953,-1532.61,8.997e-05,2]
[347513470,1735897846963,-869.67,8.997e-05,2]
[347513471,1735897846972,-500.0,8.997e-05,2]
[347513472,1735897846983,-1725.81,8.997e-05,2]
[347513473,1735897846992,-2295.81,8.997e-05,2]
[347513474,1735897847002,-1549.13,8.997e-05,2]
[347513475,1735897847012,-1549.13,8.997e-05,2]
[347513476,1735897847022,-637.38,8.997e-05,2]
[347513477,1735897847032,-500.0,8.998e-05,2]
[347513478,1735897847043,-500.0,8.998e-05,2]
[347513479,1735897847053,-502.89496878,8.998e-05,2]
[347513480,1735897847063,-500.0,8.998e-05,2]
[347513481,1735897847072,-500.0,8.998e-05,2]
[347513482,1735897847082,-500.0,8.998e-05,2]
[347513483,1735897847091,-539.0,8.998e-05,2]
[347513484,1735897847102,-500.0,8.998e-05,2]
[347513485,1735897847114,-1190.1,8.998e-05,2]
[347513486,1735897847123,-500.0,8.998e-05,2]
[347513487,1735897847133,-1175.31,8.998e-05,2]
[347513488,1735897847142,-500.0,8.998e-05,2]
[347513489,1735897847152,-500.0,8.998e-05,2]
[347513490,1735897847161,-500.0,8.998e-05,2]
[347513491,1735897847171,-1791.27,8.998e-05,2]
[347513492,1735897847180,-500.0,8.998e-05,2]
[347513493,1735897847190,-500.0,8.998e-05,2]
[347513494,1735897847200,-500.0,8.998e-05,2]
[347513495,1735897847209,-500.0,8.998e-05,2]
[347513496,1735897847219,-500.0,8.998e-05,2]
[347513497,1735897847229,-500.0,8.998e-05,2]
[347513498,1735897847239,-1241.72,8.998e-05,2]
[347513499,1735897847250,-500.0,8.998e-05,2]
[347513500,1735897847259,-502.0937396,8.998e-05,2]
[347513501,1735897847270,-500.0,8.998e-05,2]
[347513502,1735897847280,-500.0,8.998e-05,2]
[347513503,1735897847290,-500.0,8.998e-05,2]
[347513504,1735897847300,-753.46,8.998e-05,2]
[347513505,1735897847310,-500.0,8.998e-05,2]
[347513506,1735897847320,-500.0,8.998e-05,2]
[347513507,1735897847329,-500.0,8.998e-05,2]
[347513508,1735897847339,-500.0,8.998e-05,2]
[347513509,1735897847349,-500.0,8.998e-05,2]
[347513510,1735897847358,-1696.05,8.998e-05,2]
[347513511,1735897847367,-565.99616171,8.998e-05,2]
[347513512,1735897847377,-500.0,8.998e-05,2]
[347513513,1735897847386,-505.56046629,8.998e-05,2]
[347513514,1735897847395,-500.0,8.998e-05,2]
[347513515,1735897847405,-500.0,8.998e-05,2]
[347513516,1735897847414,-500.0,8.998e-05,2]
[347513517,1735897847423,-888.69,8.998e-05,2]
[347513518,1735897847432,-500.0,8.998e-05,7]
[347513519,1735897847441,-1221.53,8.998e-05,2]
[347513520,1735897847450,-223.83564374,8.998e-05,2]
[347513521,1735897847459,-1205.31,8.998e-05,2]
[347513522,1735897847468,-1924.82,8.998e-05,2]
[347513523,1735897847478,-501.32636096,8.998e-05,2]
[347513524,1735897847487,-683.94,8.998e-05,2]
[347513525,1735897847496,-684.65,8.998e-05,2]
[347513526,1735897847505,-1217.93,8.998e-05,2]
[347513527,1735897847514,-501.33061193,8.998e-05,2]
[347513528,1735897847523,-500.0,8.998e-05,2]
[347513529,1735897847532,-502.81934229,8.998e-05,2]
[347513530,1735897847542,-1825.57,8.998e-05,2]
[347513531,1735897847551,-1097.87,8.998e-05,2]
[347513532,1735897847560,-500.0,8.998e-05,2]
[347513533,1735897847569,-727.72,8.998e-05,2]
[347513534,1735897847579,-556.29,8.998e-05,2]
[347513535,1735897847588,-597.18,8.998e-05,2]
[347513536,1735897847598,-500.0,8.998e-05,2]
[347513537,1735897847607,-570.65,8.998e-05,2]
[347513538,1735897847616,-795.58,8.998e-05,2]
[347513539,1735897847626,-2623.63,8.998e-05,2]
[347513540,1735897847636,-527.33,8.998e-05,2]
[347513541,1735897847645,-780.31,8.998e-05,2]
[347513542,1735897847655,-957.3,8.998e-05,2]
[347513543,1735897847664,-500.0,8.998e-05,2]
[347513544,1735897847673,-1034.1,8.998e-05,2]
[347513545,1735897847683,-500.0,8.998e-05,2]
[347513546,1735897847692,-500.0,8.998e-05,2]
[347513547,1735897847701,-500.0,8.998e-05,2]
[347513548,1735897847710,-500.0,8.998e-05,2]
[347513549,1735897847720,-2002.66,8.998e-05,2]
[347513550,1735897847729,-683.33,8.998e-05,2]
[347513551,1735897847739,-500.0,8.998e-05,2]
[347513552,1735897847748,-500.0,8.998e-05,2]
[347513553,1735897847757,-524.33,8.998e-05,2]
[347513554,1735897847767,-500.0,8.998e-05,2]
[347513555,1735897847777,-916.29,8.998e-05,2]
[347513556,1735897847786,-158.66884376,8.998e-05,2]
[347513557,1735897847796,-500.0,8.998e-05,2]
[347513558,1735897847805,-500.0,8.998e-05,2]
[347513559,1735897847816,-1157.28,8.998e-05,2]
[347513560,1735897847825,-1778.86,8.998e-05,2]
[347513561,1735897847835,-500.0,8.998e-05,2]
[347513562,1735897847844,-500.0,8.998e-05,2]
[347513563,1735897847854,-500.0,8.998e-05,2]
[347513564,1735897847863,-500.0,8.998e-05,2]
[347513565,1735897847872,-651.92,8.998e-05,2]
[347513566,1735897847882,-1202.27,8.998e-05,2]
[347513567,1735897847891,-1443.69,8.998e-05,2]
[347513568,1735897847900,-1298.7,8.998e-05,2]
[347513569,1735897847911,-500.0,8.998e-05,2]
[347513570,1735897847920,-500.0,8.998e-05,2]
[347513571,1735897847929,-500.0,8.998e-05,2]
[347513572,1735897847939,-513.45,8.998e-05,2]
[347513573,1735897847949,-500.0,8.998e-05,2]
[347513574,1735897847958,-500.0,8.998e-05,2]
[347513575,1735897847967,-500.0,8.998e-05,2]
[347513576,1735897847978,-500.0,8.998e-05,2]
[347513577,1735897847987,-500.0,8.998e-05,2]
[347513578,1735897847997,-503.45673192,8.998e-05,2]
[347513579,1735897848007,-975.65,8.998e-05,2]
[347513580,1735897848017,-500.0,8.998e-05,2]
[347513581,1735897848027,-1235.66,8.998e-05,2]
[347513582,1735897848036,-1260.46,8.998e-05,2]
[347513583,1735897848046,-500.0,8.998e-05,2]
[347513584,1735897848056,-500.0,8.998e-05,2]
[347513585,1735897848066,-500.0,8.998e-05,2]
[347513586,1735897848076,-1103.6,8.998e-05,2]
[347513587,1735897848085,-500.0,8.998e-05,2]
[347513588,1735897848095,-267.41501231,8.998e-05,2]
[347513589,1735897848105,-500.0,8.998e-05,2]
[347513590,1735897848121,-500.0,8.998e-05,2]
[347513591,1735897848130,-500.0,8.998e-05,2]
[347513592,1735897848140,-500.0,8.998e-05,2]
[347513593,1735897848151,-547.68,8.998e-05,2]
[347513594,1735897848160,-500.0,8.998e-05,2]
[347513595,1735897848170,-500.0,8.998e-05,2]
[347513596,1735897848179,-500.0,8.998e-05,2]
[347513597,1735897848190,-958.78,8.998e-05,2]
[347513598,1735897848199,-1059.11,8.998e-05,2]
[347513599,1735897848209,-500.0,8.998e-05,2]
[347513600,1735897848218,-500.0,8.998e-05,2]
[347513601,1735897848229,-734.65,8.998e-05,2]
[347513602,1735897848239,-500.0,8.998e-05,2]
[347513603,1735897848248,-500.0,8.998e-05,2]
[347513604,1735897848258,-500.0,8.998e-05,2]
[347513605,1735897848268,-736.3,8.998e-05,2]
[347513606,1735897848277,-500.0,8.998e-05,2]
[347513607,1735897848286,-500.0,8.998e-05,2]
[347513608,1735897848296,-500.0,8.998e-05,2]
[347513609,1735897848305,-500.0,8.998e-05,2]
[347513610,1735897848315,-794.45,8.998e-05,2]
[347513611,1735897848324,-500.0,8.998e-05,2]
[347513612,1735897848333,-500.0,8.998e-05,2]
[347513613,1735897848342,-500.0,8.998e-05,2]
[347513614,1735897848351,-815.99,8.998e-05,2]
[347513615,1735897848361,-1502.02,8.998e-05,2]
[347513616,1735897848371,-500.0,8.998e-05,2]
[347513617,1735897848380,-500.0,8.998e-05,2]
[347513618,1735897848389,-1222.16,8.998e-05,2]
[347513619,1735897848399,-723.11,8.998e-05,2]
[347513620,1735897848409,-500.0,8.998e-05,2]
[347513621,1735897848418,-500.0,8.998e-05,2]
[347513622,1735897848427,-1428.34,8.998e-05,2]
[347513623,1735897848437,-500.0,8.998e-05,2]
[347513624,1735897848446,-500.0,8.998e-05,2]
[347513625,1735897848456,-500.0,8.998e-05,2]
[347513626,1735897848465,-500.0,8.998e-05,2]
[347513627,1735897848475,-150.0,8.998e-05,2]
[347513628,1735897848485,-500.0,8.998e-05,2]
[347513629,1735897848495,-516.11630185,8.998e-05,2]
[347513630,1735897848505,-5000.0,8.998e-05,2]
[347513631,1735897848514,-1427.34,8.998e-05,2]
[347513632,1735897848523,-4641.84,8.998e-05,2]
[347513633,1735897848533,-548.38,8.998e-05,2]
[347513634,1735897848542,-500.0,8.998e-05,2]
[347513635,1735897848551,-1206.62,8.998e-05,2]
[347513636,1735897848560,-1162.21,8.998e-05,2]
[347513637,1735897848570,-6158.26,8.998e-05,2]
[347513638,1735897848579,-500.0,8.998e-05,2]
[347513639,1735897848588,-500.0,8.998e-05,2]
[347513640,1735897848598,-501.88809348,8.998e-05,2]
[347513641,1735897848608,-500.0,8.998e-05,2]
[347513642,1735897848617,-500.0,8.998e-05,2]
[347513643,1735897848627,-500.0,8.998e-05,2]
[347513644,1735897848636,-1275.88,8.998e-05,2]
[347513645,1735897848645,-500.0,8.998e-05,2]
[347513646,1735897848655,-500.0,8.998e-05,2]
[347513647,1735897848664,-500.0,8.998e-05,2]
[347513648,1735897848770,-1324.87,8.998e-05,2]
[347513649,1735897848780,-500.0,8.998e-05,2]
[347513650,1735897848789,-1135.37,8.998e-05,2]
[347513651,1735897848798,-500.0,8.998e-05,2]
[347513652,1735897848807,-918.35,8.998e-05,2]
[347513653,1735897848817,-6841.13,8.998e-05,2]
[347513654,1735897848826,-500.0,8.998e-05,2]
[347513655,1735897848835,-1935.03,8.998e-05,2]
[347513656,1735897848845,-823.6,8.998e-05,2]
[347513657,1735897848854,-1694.23,8.998e-05,2]
[347513658,1735897848863,-1613.06,8.998e-05,2]
[347513659,1735897848872,-1939.7,8.998e-05,2]
[347513660,1735897848881,-5296.48,8.998e-05,2]
[347513661,1735897848891,-500.0,8.998e-05,2]
[347513662,1735897848900,-500.0,8.998e-05,2]
[347513663,1735897848909,-1162.3,8.998e-05,2]
[347513664,1735897848919,-2021.28,8.998e-05,2]
[347513665,1735897848928,-1549.13,8.998e-05,2]
[347513666,1735897848937,-3076.62,8.998e-05,2]
[347513667,1735897848946,-500.0,8.998e-05,2]
[347513668,1735897848955,-757.11,8.998e-05,2]
[347513669,1735897848965,-500.0,8.999e-05,2]
[347513670,1735897848974,-2017.83,8.999e-05,2]
[347513671,1735897848984,-500.0,8.999e-05,2]
[347513672,1735897848993,-500.0,8.999e-05,2]
[347513673,1735897849003,-685.46,8.999e-05,2]
[347513674,1735897849012,-6700.0,9e-05,3]
[347513675,1735897849022,-150.0,9.011e-05,2]
[347513676,1735897849032,-150.0,9.032e-05,2]
[347513677,1735897849041,-160.13,9.041e-05,2]
[347513678,1735897849051,-200.0,9.041e-05,2]
[347513679,1735897849060,-150.0,9.042e-05,2]
[347513680,1735897849070,-150.0,9.058e-05,2]
[347513681,1735897849079,-1097.5,9.071e-05,2]
[347513682,1735897849089,-17410.10367664,9.072e-05,2]
[347513683,1735897849099,-150.0,9.073e-05,2]
[347513684,1735897849110,-318.484,9.08e-05,2]
[347513685,1735897849122,-150.0,9.083e-05,2]
[347513686,1735897849132,-166.7,9.091e-05,2]
[347513687,1735897849142,-1467.71,9.092e-05,2]
[347513688,1735897849151,-500.0,9.101e-05,2]
[347513689,1735897849160,-1549.13,9.101e-05,2]
[347513690,1735897849169,-500.0,9.102e-05,2]
[347513691,1735897849179,-3085.84,9.102e-05,2]
[347513692,1735897849188,-3489.47,9.102e-05,2]
[347513693,1735897849197,-500.0,9.102e-05,2]
[347513694,1735897849207,-1214.53,9.102e-05,2]
[347513695,1735897849216,-3216.75,9.102e-05,2]
[347513696,1735897849225,-2477.49,9.102e-05,2]
[347513697,1735897849235,-500.0,9.102e-05,2]
[347513698,1735897849245,-2993.69,9.102e-05,2]
[347513699,1735897849254,-2524.86,9.102e-05,2]
[347513700,1735897849264,-150.0,9.104e-05,2]
[347513701,1735897849273,-421.17167474,9.121e-05,2]
[347513702,1735897849283,-150.0,9.133e-05,2]
[347513703,1735897849292,-150.0,9.134e-05,2]
[347513704,1735897849303,-150.0,9.165e-05,2]
[347513705,1735897849312,-150.0,9.177e-05,2]
[347513706,1735897849322,-150.0,9.183e-05,2]
[347513707,1735897849330,-150.0,9.196e-05,2]
[347513708,1735897849339,-150.0,9.216e-05,2]
[347513709,1735897849349,-150.0,9.227e-05,2]
[347513710,1735897849358,-150.0,9.233e-05,2]
[347513711,1735897849368,-1000.0,9.247e-05,2]
[347513712,1735897849378,-150.0,9.257e-05,2]
[347513713,1735897849388,-654.0,9.266e-05,2]
[347513714,1735897849397,-186.51874504,9.268e-05,2]
[347513715,1735897849406,-1248.41,9.268e-05,2]
[347513716,1735897849415,-6574.02,9.268e-05,2]
[347513717,1735897849424,-10321.7,9.268e-05,2]
[347513718,1735897849433,-2702.28,9.268e-05,2]
[347513719,1735897849443,-6403.77,9.268e-05,2]
[347513720,1735897849452,-2306.34,9.268e-05,2]
[347513721,1735897849461,-5858.91,9.268e-05,2]
[347513722,1735897849470,-1264.66,9.268e-05,2]
[347513723,1735897849479,-643.57,9.268e-05,2]
[347513724,1735897849489,-1122.48,9.268e-05,2]
[347513725,1735897849498,-3256.86,9.269e-05,2]
[347513726,1735897849507,-500.0,9.269e-05,2]
[347513727,1735897849517,-500.0,9.269e-05,2]
[347513728,1735897849526,-2490.62,9.269e-05,2]
[347513729,1735897849536,-543.13,9.269e-05,2]
[347513730,1735897849547,-500.0,9.269e-05,2]
[347513731,1735897849555,-2331.2,9.269e-05,2]
[347513732,1735897849564,-500.0,9.269e-05,2]
[347513733,1735897849574,-1042.51,9.269e-05,2]
[347513734,1735897849584,-500.0,9.269e-05,2]
[347513735,1735897849596,-820.27,9.269e-05,2]
[347513736,1735897849605,-500.0,9.269e-05,2]
[347513737,1735897849614,-1368.34,9.269e-05,2]
[347513738,1735897849623,-2734.34,9.269e-05,2]
[347513739,1735897849632,-500.0,9.269e-05,2]
[347513740,1735897849641,-2365.28,9.269e-05,2]
[347513741,1735897849652,-2370.47,9.269e-05,2]
[347513742,1735897849662,-2339.09,9.269e-05,2]
[347513743,1735897849671,-500.94699344,9.269e-05,2]
[347513744,1735897849683,-657.87,9.269e-05,2]
[347513745,1735897849691,-887.02,9.269e-05,2]
[347513746,1735897849700,-209.67633073,9.269e-05,2]
[347513747,1735897849709,-1410.2,9.269e-05,2]
[347513748,1735897849719,-500.0,9.269e-05,2]
[347513749,1735897849729,-1339.42,9.269e-05,2]
[347513750,1735897849739,-500.0,9.269e-05,2]
[347513751,1735897849748,-1408.28,9.269e-05,2]
[347513752,1735897849757,-500.0,9.269e-05,2]
[347513753,1735897849766,-521.83,9.269e-05,2]
[347513754,1735897849775,-500.0,9.269e-05,2]
[347513755,1735897849784,-498.69132494,9.269e-05,2]
[347513756,1735897849793,-500.0,9.269e-05,2]
[347513757,1735897849802,-500.0,9.269e-05,2]
[347513758,1735897849810,-2247.98,9.269e-05,2]
[347513759,1735897849819,-538.11,9.269e-05,2]
[347513760,1735897849828,-500.0,9.269e-05,2]
[347513761,1735897849837,-4191.21,9.269e-05,2]
[347513762,1735897849846,-1040.57,9.269e-05,2]
[347513763,1735897849854,-402.82013189,9.269e-05,2]
[347513764,1735897849863,-2974.69,9.269e-05,2]
[347513765,1735897849872,-500.0,9.269e-05,2]
[347513766,1735897849881,-3373.87,9.269e-05,2]
[347513767,1735897849890,-500.0,9.269e-05,2]
[347513768,1735897849898,-1797.59,9.269e-05,2]
[347513769,1735897849907,-2652.7,9.269e-05,2]
[347513770,1735897849916,-237.5522444,9.269e-05,2]
[347513771,1735897849925,-2801.81,9.269e-05,2]
[347513772,1735897849935,-767.7,9.269e-05,2]
[347513773,1735897849943,-500.0,9.269e-05,2]
[347513774,1735897849952,-956.73,9.269e-05,2]
[347513775,1735897849961,-2794.75,9.269e-05,2]
[347513776,1735897849970,-500.0,9.269e-05,2]
[347513777,1735897849979,-1419.02,9.269e-05,2]
[347513778,1735897849989,-763.65,9.269e-05,2]
[347513779,1735897849998,-5440.69,9.269e-05,2]
[347513780,1735897850008,-500.0,9.269e-05,2]
[347513781,1735897850018,-845.24,9.269e-05,2]
[347513782,1735897850027,-770.91,9.269e-05,2]
[347513783,1735897850036,-690.44,9.269e-05,2]
[347513784,1735897850045,-500.0,9.269e-05,2]
[347513785,1735897850054,-571.47,9.269e-05,2]
[347513786,1735897850063,-391.42593986,9.269e-05,2]
[347513787,1735897850072,-944.77,9.269e-05,2]
[347513788,1735897850082,-500.0,9.269e-05,2]
[347513789,1735897850091,-500.0,9.269e-05,2]
[347513790,1735897850100,-634.97,9.269e-05,2]
[347513791,1735897850110,-546.2,9.269e-05,2]
[347513792,1735897850122,-1246.568128,9.269e-05,2]
[347513793,1735897850131,-605.74,9.269e-05,2]
[347513794,1735897850141,-500.0,9.269e-05,2]
[347513795,1735897850151,-774.03,9.269e-05,2]
[347513796,1735897850160,-511.22,9.269e-05,2]
[347513797,1735897850169,-1508.81,9.269e-05,2]
[347513798,1735897850179,-1663.9,9.269e-05,2]
[347513799,1735897850190,-500.0,9.269e-05,2]
[347513800,1735897850200,-3032.6,9.269e-05,2]
[347513801,1735897850209,-500.0,9.269e-05,2]
[347513802,1735897850219,-1331.45,9.269e-05,2]
[347513803,1735897850228,-1612.03,9.269e-05,2]
[347513804,1735897850238,-693.11,9.269e-05,2]
[347513805,1735897850247,-1033.61,9.269e-05,2]
[347513806,1735897850257,-500.0,9.269e-05,2]
[347513807,1735897850267,-500.0,9.269e-05,2]
[347513808,1735897850277,-871.52,9.269e-05,2]
[347513809,1735897850286,-1951.86,9.269e-05,2]
[347513810,1735897850297,-2350.16,9.269e-05,2]
[347513811,1735897850307,-617.239142,9.269e-05,2]
[347513812,1735897850316,-1372.36,9.269e-05,2]
[347513813,1735897850326,-500.0,9.269e-05,2]
[347513814,1735897850335,-500.97,9.269e-05,2]
[347513815,1735897850346,-1370.52,9.269e-05,2]
[347513816,1735897850356,-3342.5,9.269e-05,2]
[347513817,1735897850365,-500.0,9.269e-05,2]
[347513818,1735897850374,-1315.11,9.269e-05,2]
[347513819,1735897850384,-500.0,9.269e-05,2]
[347513820,1735897850395,-500.0,9.269e-05,2]
[347513821,1735897850405,-3356.46,9.269e-05,2]
[347513822,1735897850414,-500.0,9.269e-05,2]
[347513823,1735897850425,-500.0,9.269e-05,2]
[347513824,1735897850434,-500.0,9.269e-05,2]
[347513825,1735897850444,-724.16,9.269e-05,2]
[347513826,1735897850455,-3435.38,9.269e-05,2]
[347513827,1735897850464,-500.0,9.269e-05,2]
[347513828,1735897850474,-500.0,9.269e-05,2]
[347513829,1735897850486,-500.0,9.269e-05,2]
[347513830,1735897850495,-1118.96,9.269e-05,2]
[347513831,1735897850504,-1968.44,9.269e-05,2]
[347513832,1735897850514,-525.94,9.269e-05,2]
[347513833,1735897850524,-203.45728543,9.269e-05,2]
[347513834,1735897850534,-1215.13,9.269e-05,2]
[347513835,1735897850544,-2462.44,9.269e-05,2]
[347513836,1735897850554,-500.0,9.269e-05,2]
[347513837,1735897850564,-500.0,9.269e-05,2]
[347513838,1735897850574,-884.11,9.269e-05,2]
[347513839,1735897850583,-500.0,9.269e-05,2]
[347513840,1735897850594,-500.0,9.269e-05,2]
[347513841,1735897850603,-5071.03,9.269e-05,2]
[347513842,1735897850614,-810.69,9.269e-05,2]
[347513843,1735897850624,-953.33,9.269e-05,2]
[347513844,1735897850634,-676.78,9.269e-05,2]
[347513845,1735897850643,-500.0,9.269e-05,2]
[347513846,1735897850654,-500.0,9.269e-05,2]
[347513847,1735897850664,-500.0,9.269e-05,2]
[347513848,1735897850674,-1101.81,9.269e-05,2]
[347513849,1735897850684,-500.0,9.269e-05,2]
[347513850,1735897850695,-500.0,9.269e-05,2]
[347513851,1735897850704,-1500.92,9.269e-05,2]
[347513852,1735897850714,-806.89,9.269e-05,2]